bitfinex-derivatives/quotes_BTCF0:USTF0_20241224
["timestamp","ask_amount","ask_price","bid_price","bid_amount"]
[1735003488371,0.00010599,94447.0,94438.0,0.3608]
[1735003488668,0.053006,94446.0,94443.0,0.053007]
[1735003488971,0.053006,94446.0,94438.0,0.3608]
[1735003489159,0.053006,94446.0,94444.0,0.053007]
[1735003490362,0.056006,94446.0,94444.0,0.053007]
[1735003491160,0.057006,94446.0,94444.0,0.059007]
[1735003491559,0.3608,94445.0,94430.0,0.3608]
[1735003491760,0.053013,94434.0,94430.0,0.3608]
[1735003492063,0.11587146,94433.0,94430.0,0.3608]
[1735003492263,0.3608,94432.0,94423.0,0.053018]
[1735003492463,0.3608,94432.0,94420.0,0.10799614]
[1735003492669,0.053015,94430.0,94425.0,0.053017]
[1735003492866,0.053015,94430.0,94420.0,0.10799614]
[1735003492867,0.053015,94430.0,94426.0,0.053017]
[1735003494973,0.0573,94429.0,94427.0,0.053016]
[1735003496463,0.0593,94429.0,94427.0,0.053016]
[1735003497271,0.0643,94429.0,94427.0,0.053016]
[1735003498772,0.0593,94429.0,94427.0,0.053016]
[1735003499074,0.0663,94429.0,94427.0,0.053016]
[1735003500465,0.0663,94429.0,94419.0,0.46879614]
[1735003500670,0.05302,94421.0,94419.0,0.3608]
[1735003500970,0.00167146,94428.0,94421.0,0.05302]
[1735003501165,0.053017,94426.0,94421.0,0.05302]
[1735003501563,0.053017,94426.0,94424.0,0.053018]
[1735003501876,0.0603,94429.0,94427.0,0.053017]
[1735003502465,0.0573,94429.0,94427.0,0.053017]
[1735003504162,0.0613,94429.0,94427.0,0.053017]
[1735003504363,0.0623,94429.0,94422.0,0.3608]
[1735003504563,0.0583,94429.0,94422.0,0.3608]
[1735003504768,0.053018,94425.0,94422.0,0.3608]
[1735003504973,0.053018,94425.0,94423.0,0.053019]
[1735003505579,0.00167146,94428.0,94410.0,0.4716649]
[1735003505873,0.053019,94423.0,94421.0,0.05302]
[1735003506378,0.053021,94419.0,94417.0,0.053022]
[1735003506763,0.00167146,94420.0,94417.0,0.053022]
[1735003506971,0.00167146,94420.0,94418.0,0.053021]
[1735003507172,0.004,94425.0,94418.0,0.053021]
[1735003507368,0.004,94423.0,94418.0,0.053021]
[1735003508079,0.004,94420.0,94418.0,0.053021]
[1735003508478,0.004,94420.0,94419.0,0.053021]
[1735003508779,0.004,94420.0,94419.0,0.413821]
[1735003509567,0.005,94423.0,94419.0,0.3608]
[1735003509773,0.005,94423.0,94422.0,0.053019]
[1735003509968,0.002,94425.0,94419.0,0.3608]
[1735003510174,0.002,94425.0,94424.0,0.053018]
[1735003510880,0.0573,94429.0,94428.0,0.053016]
[1735003512674,0.0623,94429.0,94428.0,0.053016]
[1735003512874,0.0683,94429.0,94428.0,0.053016]
[1735003513283,0.0623,94429.0,94428.0,0.053016]
[1735003513485,0.0713,94429.0,94428.0,0.053016]
[1735003513784,0.0713,94429.0,94428.0,0.3608]
[1735003513989,0.0713,94429.0,94424.0,0.053018]
[1735003514186,0.0713,94429.0,94419.0,0.3608]
[1735003514187,0.053016,94428.0,94419.0,0.3608]
[1735003514388,0.053016,94428.0,94425.0,0.053018]
[1735003515784,0.053017,94426.0,94425.0,0.053018]
[1735003516481,0.053019,94422.0,94420.0,0.05302]
[1735003516687,0.053022,94417.0,94416.0,0.36890099]
[1735003516887,0.053022,94417.0,94416.0,0.31587799]
[1735003517077,0.053022,94417.0,94416.0,0.31420653]
[1735003517480,0.053022,94417.0,94416.0,0.053023]
[1735003518487,0.009,94426.0,94410.0,0.05461476]
[1735003518686,0.104,94416.0,94410.0,0.05461476]
[1735003519881,0.053025,94413.0,94412.0,0.053025]
[1735003520894,0.104,94416.0,94415.0,0.053023]
[1735003520895,0.109,94416.0,94415.0,0.053023]
[1735003521188,0.109,94416.0,94415.0,0.413823]
[1735003522179,0.104,94416.0,94415.0,0.413823]
[1735003522382,0.105,94416.0,94415.0,0.413823]
[1735003522889,0.114,94416.0,94415.0,0.413823]
[1735003523387,0.116,94416.0,94415.0,0.413823]
[1735003523581,0.169023,94416.0,94415.0,0.413823]
[1735003524093,0.169023,94416.0,94415.0,0.3608]
[1735003524284,0.053024,94415.0,94412.0,0.053025]
[1735003524681,0.116,94416.0,94410.0,0.00158876]
[1735003524882,0.116,94416.0,94415.0,0.053023]
[1735003525082,0.116,94416.0,94415.0,0.413823]
[1735003525687,0.113,94416.0,94415.0,0.413823]
[1735003525886,0.116,94416.0,94415.0,0.413823]
[1735003526189,0.012,94416.0,94415.0,0.413823]
[1735003526489,0.009,94416.0,94415.0,0.413823]
[1735003526688,0.012,94416.0,94415.0,0.413823]
[1735003527089,0.012,94416.0,94415.0,0.65026055]
[1735003527594,0.012,94416.0,94415.0,0.69270026]
[1735003528894,0.009,94416.0,94415.0,0.65126055]
[1735003529285,8.675e-05,94417.0,94416.0,0.053023]
[1735003530387,0.00108675,94417.0,94416.0,0.053023]
[1735003530791,0.00108675,94417.0,94416.0,0.28946055]
[1735003532098,0.00308675,94417.0,94416.0,0.28946055]
[1735003533594,0.00308675,94417.0,94416.0,0.053023]
[1735003534903,0.00408675,94417.0,94416.0,0.053023]
[1735003535501,0.00708675,94417.0,94416.0,0.053023]
[1735003535801,0.00908675,94417.0,94416.0,0.053023]
[1735003536002,0.00208675,94417.0,94416.0,0.053023]
[1735003536202,0.00908675,94417.0,94416.0,0.053023]
[1735003536702,0.00208675,94417.0,94416.0,0.053023]
[1735003536905,0.01008675,94417.0,94416.0,0.053023]
[1735003545111,0.053024,94415.0,94411.0,0.053026]
[1735003545610,0.053024,94414.0,94411.0,0.053026]
[1735003546397,0.1049,94416.0,94415.0,0.053023]
[1735003546705,0.1049,94416.0,94415.0,0.413823]
[1735003547805,0.1049,94416.0,94415.0,0.96837381]
[1735003548909,0.1079,94416.0,94415.0,0.96837381]
[1735003549211,0.1169,94416.0,94415.0,0.65061014]
[1735003550212,0.1079,94416.0,94415.0,0.65061014]
[1735003550413,0.1089,94416.0,94415.0,0.65061014]
[1735003550610,0.1099,94416.0,94415.0,0.65061014]
[1735003551810,0.1059,94416.0,94415.0,0.65061014]
[1735003552007,0.1099,94416.0,94415.0,0.65061014]
[1735003553104,0.1089,94416.0,94415.0,0.65061014]
[1735003553303,0.1099,94416.0,94415.0,0.65061014]
[1735003553705,0.005,94416.0,94415.0,0.65061014]
[1735003553905,0.001,94416.0,94415.0,0.89758714]
[1735003554107,0.001,94416.0,94415.0,0.99305397]
[1735003555110,0.004,94416.0,94415.0,0.99305397]
[1735003555517,0.0573,94429.0,94415.0,0.99305397]
[1735003555716,0.0573,94429.0,94428.0,0.413816]
[1735003556720,0.0603,94429.0,94428.0,0.413816]
[1735003558413,0.0663,94429.0,94428.0,0.414816]
[1735003558618,0.0693,94429.0,94428.0,0.414816]
[1735003560318,0.0693,94429.0,94428.0,0.3618]
[1735003560518,0.122315,94429.0,94428.0,0.3618]
[1735003561016,0.122315,94429.0,94428.0,0.001]
[1735003561319,0.122315,94429.0,94428.0,0.16965206]
[1735003561514,0.053018,94424.0,94421.0,0.31763584]
[1735003562620,0.055018,94424.0,94421.0,0.31763584]
[1735003562917,0.055018,94424.0,94420.0,0.05302]
[1735003563121,0.055018,94424.0,94421.0,0.001]
[1735003563122,0.061018,94424.0,94421.0,0.001]
[1735003564016,0.055018,94424.0,94420.0,0.06334167]
[1735003564216,0.061018,94424.0,94420.0,0.06434167]
[1735003565520,0.055018,94424.0,94420.0,0.06334167]
[1735003565717,0.059018,94424.0,94421.0,0.001]
[1735003565912,0.060018,94424.0,94421.0,0.001]
[1735003566107,0.054018,94424.0,94420.0,0.06334167]
[1735003566309,0.060018,94424.0,94420.0,0.06434167]
[1735003567515,0.053019,94423.0,94420.0,0.06434167]
[1735003568622,0.054019,94423.0,94420.0,0.06434167]
[1735003568809,0.054019,94423.0,94420.0,0.05402]
[1735003568810,0.053019,94422.0,94420.0,0.05402]
[1735003569011,0.05302,94421.0,94420.0,0.001]
[1735003570118,0.05302,94421.0,94415.0,0.67975584]
[1735003570314,0.05902,94421.0,94420.0,0.001]
[1735003570723,0.05302,94421.0,94417.0,0.053022]
[1735003571025,0.05902,94421.0,94420.0,0.001]
[1735003572432,0.05902,94421.0,94417.0,0.053022]
[1735003572433,0.053021,94419.0,94417.0,0.053022]
[1735003572726,0.1054,94418.0,94417.0,0.053022]
[1735003574724,0.1114,94418.0,94417.0,0.053022]
[1735003575027,0.1134,94418.0,94417.0,0.053022]
[1735003575833,0.1134,94418.0,94415.0,0.01071286]
[1735003576025,0.053026,94411.0,94410.0,0.00158876]
[1735003576416,0.053026,94411.0,94409.0,0.31763584]
[1735003576417,0.053026,94410.0,94409.0,0.31763584]
[1735003577527,0.053029,94405.0,94402.0,0.054311]
[1735003577721,0.007,94410.0,94402.0,0.053031]
[1735003578322,0.05303,94403.0,94402.0,0.053031]
[1735003579227,0.05303,94403.0,94396.0,0.3608]
[1735003579430,0.053033,94397.0,94396.0,0.3608]
[1735003579729,0.053034,94396.0,94394.0,0.31774791]
[1735003580330,0.053034,94396.0,94394.0,0.00011207]
[1735003582523,0.053035,94395.0,94394.0,0.00111207]
[1735003582922,0.053037,94391.0,94390.0,0.00158892]
[1735003583123,0.001,94396.0,94390.0,0.00158892]
[1735003583333,0.001,94396.0,94395.0,0.3608]
[1735003583635,0.053034,94397.0,94395.0,0.3608]
[1735003583930,0.00011162,94396.0,94395.0,0.3608]
[1735003586429,0.00111162,94396.0,94395.0,0.3608]
[1735003586631,0.00111162,94396.0,94395.0,0.37158449]
[1735003587041,0.12702431,94412.0,94395.0,0.37158449]
[1735003587234,0.12702431,94412.0,94411.0,0.3608]
[1735003587739,0.053019,94424.0,94415.0,0.053023]
[1735003588431,0.109819,94423.0,94419.0,0.3608]
[1735003589335,0.0568,94423.0,94419.0,0.3608]
[1735003589534,0.05302,94421.0,94419.0,0.3608]
[1735003589730,0.0658,94423.0,94419.0,0.3608]
[1735003589930,0.0658,94423.0,94411.0,0.19014674]
[1735003589931,0.053024,94414.0,94411.0,0.19014674]
[1735003590739,0.053024,94414.0,94413.0,0.19014674]
[1735003591844,0.055024,94414.0,94413.0,0.19014674]
[1735003592038,0.055024,94414.0,94409.0,0.55094674]
[1735003592344,0.053025,94412.0,94409.0,0.56130175]
[1735003592735,0.003,94414.0,94409.0,0.56130175]
[1735003593336,0.006,94412.0,94410.0,0.053026]
[1735003593640,0.006,94412.0,94411.0,0.053026]
[1735003593944,0.10107827,94414.0,94409.0,0.37115501]
[1735003594256,0.10107827,94414.0,94413.0,0.053024]
[1735003594538,0.10107827,94414.0,94413.0,0.413824]
[1735003595546,0.10107827,94414.0,94413.0,0.73145984]
[1735003595547,0.006,94414.0,94413.0,0.73145984]
[1735003596140,0.001,94414.0,94413.0,0.73145984]
[1735003596336,0.002,94414.0,94413.0,0.67843584]
[1735003596543,0.002,94414.0,94413.0,0.73145984]
[1735003596749,0.002,94414.0,94413.0,0.64052715]
[1735003597248,0.01,94414.0,94413.0,0.64052715]
[1735003599532,0.01,94414.0,94413.0,0.413824]
[1735003600148,0.01,94414.0,94413.0,0.3608]
[1735003600541,0.01,94414.0,94412.0,0.31696248]
[1735003600742,0.01,94414.0,94413.0,0.053024]
[1735003602242,0.009,94414.0,94413.0,0.053024]
[1735003602851,0.01,94414.0,94413.0,0.053024]
[1735003603455,0.009,94414.0,94413.0,0.053024]
[1735003604046,0.09507827,94430.0,94429.0,0.053015]
[1735003604956,0.1107,94435.0,94428.0,0.3608]
[1735003605147,0.1107,94435.0,94431.0,0.053014]
[1735003605950,0.001,94430.0,94429.0,0.063015]
[1735003606445,0.1117,94435.0,94431.0,0.006]
[1735003606754,0.0548,94435.0,94434.0,0.413813]
[1735003606948,0.002,94435.0,94434.0,0.413813]
[1735003608241,0.001,94435.0,94434.0,0.413813]
[1735003608446,0.001,94435.0,94434.0,0.420813]
[1735003608846,0.002,94435.0,94434.0,0.426813]
[1735003610051,0.002,94435.0,94434.0,0.3738]
[1735003610247,0.002,94435.0,94434.0,0.013]
[1735003610853,0.002,94435.0,94434.0,0.3738]
[1735003614362,0.09507827,94448.0,94447.0,0.053005]
[1735003614664,0.09507827,94448.0,94447.0,0.413805]
[1735003615861,0.001,94448.0,94447.0,0.419805]
[1735003617162,0.001,94448.0,94447.0,0.423805]
[1735003617666,0.001,94448.0,94447.0,0.419805]
[1735003617958,0.001,94448.0,94447.0,0.43523454]
[1735003618863,0.001,94448.0,94447.0,0.36123454]
[1735003619166,0.001,94448.0,94447.0,0.41423954]
[1735003624755,0.001,94448.0,94447.0,0.350805]
[1735003625765,0.09607827,94448.0,94447.0,0.350805]
[1735003626568,0.09607827,94448.0,94447.0,0.011]
[1735003627263,0.001,94448.0,94447.0,0.011]
[1735003627558,0.001,94448.0,94439.0,0.18992649]
[1735003627759,0.053009,94441.0,94439.0,0.18992649]
[1735003628659,0.053009,94441.0,94438.0,0.18992649]
[1735003628869,0.09513534,94445.0,94438.0,0.11592649]
[1735003629064,0.14814234,94445.0,94441.0,0.053008]
[1735003629261,0.09513534,94445.0,94443.0,0.053008]
[1735003630265,0.09613534,94445.0,94443.0,0.059008]
[1735003630472,0.12902431,94445.0,94443.0,0.059008]
[1735003630860,0.12802431,94445.0,94443.0,0.059008]
[1735003631165,0.12902431,94445.0,94443.0,0.068008]
[1735003631667,0.12902431,94445.0,94443.0,0.015]
[1735003631967,0.002,94445.0,94443.0,0.068007]
[1735003633363,0.09714809,94445.0,94443.0,0.068007]
[1735003633566,0.09714809,94445.0,94443.0,0.015]
[1735003633772,0.09714809,94445.0,94442.0,0.3018]
[1735003634364,0.09714809,94445.0,94440.0,0.053009]
[1735003634870,0.12902431,94445.0,94440.0,0.053009]
[1735003635067,0.12902431,94445.0,94442.0,0.009]
[1735003636072,0.12802431,94445.0,94442.0,0.009]
[1735003636274,0.12802431,94445.0,94442.0,0.013]
[1735003636275,0.12702431,94444.0,94442.0,0.013]
[1735003636778,0.12702431,94444.0,94442.0,0.004]
[1735003637272,0.12702431,94444.0,94442.0,0.057008]
[1735003637576,0.12802431,94444.0,94442.0,0.053008]
[1735003637969,0.001,94444.0,94442.0,0.053008]
[1735003638567,0.002,94444.0,94442.0,0.053008]
[1735003647581,0.12698854,94443.0,94442.0,0.053008]
[1735003648582,0.002,94444.0,94442.0,0.053008]
[1735003649180,0.001,94443.0,94442.0,0.057008]
[1735003649695,0.001,94443.0,94442.0,0.059008]
[1735003649882,0.001,94443.0,94442.0,0.055008]
[1735003650079,0.001,94444.0,94442.0,0.004]
[1735003650279,0.002,94444.0,94443.0,0.413808]
[1735003650686,0.001,94444.0,94443.0,0.413808]
[1735003650884,0.1062,94449.0,94446.0,0.053006]
[1735003652186,0.1062,94449.0,94443.0,0.3608]
[1735003652486,0.002,94444.0,94443.0,0.3668]
[1735003652888,0.001,94444.0,94443.0,0.3648]
[1735003653293,0.1072,94449.0,94446.0,0.004]
[1735003653689,0.053005,94447.0,94446.0,0.004]
[1735003653888,0.053005,94447.0,94437.0,0.42495862]
[1735003654090,0.001,94444.0,94443.0,0.002]
[1735003654389,0.002,94444.0,94443.0,0.006]
[1735003655489,0.001,94444.0,94443.0,0.004]
[1735003655690,0.053006,94446.0,94441.0,0.053009]
[1735003656092,0.001,94444.0,94441.0,0.053009]
[1735003656692,0.002,94444.0,94443.0,0.001]
[1735003658588,0.002,94444.0,94442.0,0.25428107]
[1735003659384,0.002,94444.0,94443.0,0.001]
[1735003659788,0.002,94444.0,94443.0,0.25528107]
[1735003659985,0.001,94444.0,94443.0,0.25428107]
[1735003660194,0.002,94444.0,94443.0,0.25428107]
[1735003661285,0.002,94444.0,94442.0,0.001]
[1735003662090,0.002,94444.0,94443.0,0.001]
[1735003662896,0.002,94444.0,94442.0,0.001]
[1735003663792,0.002,94444.0,94442.0,0.25533076]
[1735003664792,0.002,94444.0,94443.0,0.001]
[1735003664993,0.001,94444.0,94443.0,0.001]
[1735003665193,0.002,94444.0,94443.0,0.25533076]
[1735003665595,0.002,94444.0,94443.0,0.25433076]
[1735003666099,0.001,94444.0,94443.0,0.25433076]
[1735003666492,0.002,94444.0,94443.0,0.25533076]
[1735003667404,0.002,94444.0,94443.0,0.001]
[1735003670004,0.002,94444.0,94443.0,0.25533892]
[1735003670598,0.055007,94444.0,94443.0,0.25533892]
[1735003671099,0.002,94444.0,94443.0,0.001]
[1735003671999,0.19032375,94454.0,94443.0,0.054008]
[1735003672203,0.25418807,94473.0,94466.0,0.052995]
[1735003672503,0.25418807,94473.0,94466.0,0.413795]
[1735003672697,0.25362806,94473.0,94466.0,0.413795]
[1735003672902,0.25362806,94473.0,94466.0,0.45625494]
[1735003673097,0.25362806,94473.0,94466.0,0.413795]
[1735003674006,0.001,94467.0,94466.0,0.99148181]
[1735003674994,0.002,94467.0,94466.0,1.00048181]
[1735003675195,0.002,94467.0,94466.0,0.71998742]
[1735003675400,0.002,94467.0,94466.0,0.7216604]
[1735003675706,0.00091592,94467.0,94466.0,0.7306604]
[1735003676107,0.0514,94477.0,94476.0,0.052989]
[1735003676308,0.0514,94477.0,94476.0,0.413789]
[1735003677519,0.0514,94477.0,94476.0,0.416789]
[1735003678232,0.0524,94477.0,94476.0,0.3718]
[1735003681922,0.0524,94477.0,94476.0,0.38250508]
[1735003682124,0.0524,94477.0,94476.0,0.3718]
[1735003683925,0.0524,94477.0,94476.0,0.011]
[1735003684723,0.001,94477.0,94476.0,0.011]
[1735003685224,0.0568,94483.0,94482.0,0.052984]
[1735003686924,0.0578,94483.0,94482.0,0.057984]
[1735003687727,0.0578,94483.0,94482.0,0.066984]
[1735003688515,0.0578,94483.0,94482.0,0.014]
[1735003692032,0.0578,94483.0,94473.0,0.10767158]
[1735003692033,0.052987,94479.0,94473.0,0.052989]
[1735003693729,0.052987,94478.0,94473.0,0.052989]
[1735003693929,0.052988,94476.0,94470.0,0.10767158]
[1735003694531,0.001,94479.0,94470.0,0.10767158]
[1735003694734,0.052988,94475.0,94470.0,0.10767158]
[1735003695135,0.052988,94475.0,94473.0,0.001]
[1735003696627,0.052988,94475.0,94470.0,0.10767158]
[1735003696628,0.052988,94475.0,94470.0,0.10867158]
[1735003697028,0.060988,94475.0,94470.0,0.36172476]
[1735003697229,0.069988,94475.0,94473.0,0.001]
[1735003697732,0.069988,94475.0,94470.0,0.36172476]
[1735003698335,0.060988,94475.0,94471.0,0.25305318]
[1735003698632,0.061988,94475.0,94473.0,0.001]
[1735003698833,0.067988,94475.0,94473.0,0.001]
[1735003700132,0.058988,94475.0,94472.0,0.25305318]
[1735003700343,0.068988,94475.0,94472.0,0.25305318]
[1735003700636,0.016,94475.0,94472.0,0.25305318]
[1735003700832,0.05299,94473.0,94471.0,0.05299]
[1735003701025,0.104,94472.0,94471.0,0.05299]
[1735003702136,0.104,94472.0,94471.0,0.05399]
[1735003702334,0.104,94472.0,94471.0,0.34968453]
[1735003703237,0.11,94472.0,94471.0,0.35068453]
[1735003703736,0.11,94472.0,94471.0,0.73081536]
[1735003704347,0.119,94472.0,94471.0,0.73081536]
[1735003706842,0.119,94472.0,94471.0,1.09161536]
[1735003707039,0.0668,94472.0,94471.0,0.71148453]
[1735003708439,0.0668,94472.0,94471.0,1.09161536]
[1735003711043,0.0668,94472.0,94471.0,0.71148453]
[1735003720559,0.0668,94472.0,94471.0,1.06085419]
[1735003722058,0.0668,94472.0,94471.0,1.00786419]
[1735003723051,0.0668,94472.0,94471.0,1.03931916]
[1735003724457,0.0668,94472.0,94471.0,0.65849453]
[1735003727057,0.0668,94472.0,94471.0,0.71148553]
[1735003733251,0.0668,94472.0,94471.0,0.35068553]
[1735003733454,0.0668,94472.0,94471.0,0.71148553]
[1735003736354,0.0668,94472.0,94471.0,0.35068553]
[1735003736556,0.0668,94472.0,94471.0,0.71148553]
[1735003737354,0.0668,94472.0,94471.0,0.35068553]
[1735003737558,0.0668,94472.0,94471.0,0.71148553]
[1735003739961,0.0668,94472.0,94471.0,0.35068553]
[1735003740268,0.0668,94472.0,94471.0,0.70070691]
[1735003740563,0.0668,94472.0,94471.0,1.06150691]
[1735003744362,0.0668,94472.0,94471.0,0.71148553]
[1735003746176,0.0668,94472.0,94471.0,1.09269732]
[1735003747377,0.0668,94472.0,94471.0,0.73189732]
[1735003751284,0.0668,94472.0,94471.0,0.35068553]
[1735003752379,0.0668,94472.0,94471.0,0.73189732]
[1735003754086,0.0668,94472.0,94471.0,0.35068553]
[1735003759285,0.11979,94472.0,94471.0,0.29769453]
[1735003759493,0.11979,94472.0,94471.0,0.05079453]
[1735003759887,0.052992,94469.0,94468.0,0.38121179]
[1735003760188,0.052992,94469.0,94468.0,0.17168923]
[1735003760896,0.061992,94469.0,94468.0,0.25520546]
[1735003761089,0.067992,94469.0,94468.0,0.25620546]
[1735003762499,0.067992,94469.0,94468.0,0.002]
[1735003763094,0.121892,94469.0,94468.0,0.002]
[1735003773592,0.067992,94469.0,94468.0,0.002]
[1735003773793,0.015,94469.0,94468.0,0.054992]
[1735003774195,0.05960386,94471.0,94468.0,0.37312413]
[1735003774396,0.05960386,94471.0,94470.0,0.052991]
[1735003774600,0.0518,94499.0,94477.0,0.052987]
[1735003774601,0.01071666,94491.0,94477.0,0.052987]
[1735003774902,0.0518,94499.0,94477.0,0.413787]
[1735003775097,0.052979,94491.0,94477.0,0.413787]
[1735003775293,0.05298,94490.0,94477.0,0.413787]
[1735003776105,0.167828,94478.0,94477.0,0.414787]
[1735003776508,0.009,94478.0,94477.0,0.414787]
[1735003777305,0.016,94478.0,94477.0,0.415787]
[1735003778801,0.016,94478.0,94477.0,0.341787]
[1735003779404,0.016,94478.0,94477.0,0.3628]
[1735003780003,0.016,94478.0,94477.0,0.415787]
[1735003783904,0.016,94478.0,94477.0,0.054987]
[1735003784105,0.016,94478.0,94477.0,0.415787]
[1735003786711,0.016,94478.0,94477.0,0.66904102]
[1735003788214,0.016,94478.0,94477.0,0.415787]
[1735003788715,0.016,94478.0,94477.0,0.463787]
[1735003802319,0.016,94478.0,94477.0,0.415787]
[1735003804328,0.016,94478.0,94477.0,0.69283757]
[1735003805517,0.11107393,94478.0,94477.0,0.69283757]
[1735003805721,0.52486093,94478.0,94477.0,0.04155057]
[1735003806018,0.052989,94475.0,94474.0,0.05900614]
[1735003806715,0.053001,94453.0,94445.0,0.44139078]
[1735003806915,0.413801,94453.0,94445.0,0.44271078]
[1735003807130,0.774601,94453.0,94445.0,0.00132]
[1735003807323,0.774601,94453.0,94441.0,0.10450623]
[1735003807324,0.774601,94453.0,94441.0,9.823e-05]
[1735003807518,0.413807,94442.0,94441.0,9.823e-05]
[1735003808818,0.422807,94442.0,94441.0,0.00109823]
[1735003809233,0.413807,94442.0,94441.0,9.823e-05]
[1735003809522,0.414807,94442.0,94441.0,0.00909823]
[1735003809918,0.3618,94442.0,94441.0,0.00909823]
[1735003810117,0.001,94442.0,94441.0,0.00909823]
[1735003810520,0.001,94442.0,94441.0,0.01109823]
[1735003811330,0.09487694,94458.0,94441.0,0.01109823]
[1735003811532,0.09487694,94458.0,94456.0,0.052999]
[1735003811829,0.09487694,94458.0,94457.0,0.1007]
[1735003812623,0.052994,94467.0,94457.0,0.1007]
[1735003813732,0.01038815,94469.0,94457.0,0.1007]
[1735003813926,0.01038815,94469.0,94444.0,0.55113129]
[1735003814126,0.053002,94452.0,94444.0,0.60033129]
[1735003814433,0.053002,94452.0,94446.0,0.3608]
[1735003814733,0.053002,94452.0,94445.0,0.3608]
[1735003814933,0.10776299,94460.0,94445.0,0.3608]
[1735003815131,0.053004,94448.0,94444.0,0.0512]
[1735003815722,0.053004,94448.0,94444.0,0.0592]
[1735003815917,0.053005,94445.0,94444.0,0.0592]
[1735003816333,0.053005,94445.0,94444.0,0.0572]
[1735003817231,0.054005,94445.0,94444.0,0.0602]
[1735003817528,0.001,94445.0,94444.0,0.0612]
[1735003818121,0.001,94445.0,94444.0,0.0522]
[1735003818325,0.002,94445.0,94444.0,0.0612]
[1735003818927,0.053006,94444.0,94442.0,0.0387]
[1735003819121,0.002,94445.0,94441.0,9.823e-05]
[1735003819122,0.3628,94445.0,94441.0,9.823e-05]
[1735003819323,0.053007,94442.0,94441.0,9.823e-05]
[1735003820532,0.053007,94442.0,94441.0,0.00109823]
[1735003820936,0.001,94444.0,94441.0,0.00109823]
[1735003821127,0.001,94444.0,94442.0,0.053007]
[1735003822424,0.054007,94442.0,94441.0,0.00109823]
[1735003823228,0.053007,94442.0,94441.0,9.823e-05]
[1735003823430,0.413807,94442.0,94441.0,9.823e-05]
[1735003824136,0.415807,94442.0,94441.0,0.00109823]
[1735003831953,0.3628,94442.0,94441.0,0.00109823]
[1735003832248,0.002,94442.0,94441.0,0.00109823]
[1735003833244,0.055007,94442.0,94441.0,0.00109823]
[1735003835547,0.14988394,94442.0,94441.0,0.00109823]
[1735003836845,0.055007,94442.0,94441.0,0.00109823]
[1735003840451,0.21362792,94442.0,94441.0,0.00109823]
[1735003842142,0.10655043,94442.0,94441.0,0.00109823]
[1735003842649,0.46735043,94442.0,94441.0,0.00109823]
[1735003845757,0.46735043,94442.0,94441.0,2.3e-07]
[1735003845758,0.76735043,94442.0,94441.0,2.3e-07]
[1735003846759,0.46746351,94442.0,94441.0,2.3e-07]
[1735003847354,0.76746351,94442.0,94441.0,2.3e-07]
[1735003847953,2.08746351,94442.0,94441.0,2.3e-07]
[1735003848153,1.78746351,94442.0,94441.0,2.3e-07]
[1735003848556,0.46746351,94442.0,94441.0,2.3e-07]
[1735003849254,0.76746351,94442.0,94441.0,2.3e-07]
[1735003849466,0.46746351,94442.0,94441.0,2.3e-07]
[1735003852362,0.76746351,94442.0,94441.0,2.3e-07]
[1735003852766,2.08746351,94442.0,94441.0,2.3e-07]
[1735003853650,1.78746351,94442.0,94441.0,2.3e-07]
[1735003854753,1.78746351,94442.0,94427.0,0.0511]
[1735003854955,0.413813,94432.0,94427.0,0.0511]
[1735003856167,0.422813,94432.0,94427.0,0.0511]
[1735003856865,0.47435643,94432.0,94427.0,0.0511]
[1735003857258,0.47935643,94432.0,94427.0,0.0511]
[1735003857868,0.49010215,94432.0,94427.0,0.0511]
[1735003859458,0.59709418,94432.0,94427.0,0.0511]
[1735003861268,0.43855872,94432.0,94427.0,0.0511]
[1735003863968,0.053017,94424.0,94423.0,0.0488]
[1735003864266,0.053017,94424.0,94420.0,0.19033129]
[1735003864267,0.36088162,94424.0,94420.0,0.19033129]
[1735003864472,0.053019,94420.0,94419.0,0.19033129]
[1735003865169,0.413819,94420.0,94414.0,0.11532534]
[1735003865366,0.053022,94415.0,94414.0,0.11532534]
[1735003865666,0.053022,94415.0,94414.0,3.4e-07]
[1735003865859,0.05311527,94415.0,94414.0,3.4e-07]
[1735003866060,0.053026,94408.0,94407.0,0.17649715]
[1735003866361,0.053026,94408.0,94378.0,0.053043]
[1735003866362,0.053034,94394.0,94393.0,0.17649715]
[1735003866563,0.413834,94394.0,94393.0,0.17649715]
[1735003867860,0.053035,94393.0,94392.0,0.0465]
[1735003868971,0.054035,94393.0,94392.0,0.0465]
[1735003872974,0.14897015,94393.0,94392.0,0.0465]
[1735003876978,0.054035,94393.0,94392.0,0.0465]
[1735003878369,0.05070042,94399.0,94392.0,0.4073]
[1735003878564,0.08243935,94406.0,94405.0,0.053028]
[1735003878771,0.08243935,94406.0,94405.0,0.413828]
[1735003879372,0.19046381,94413.0,94405.0,0.3608]
[1735003879579,9.327e-05,94415.0,94414.0,0.053023]
[1735003880090,0.00776381,94431.0,94414.0,0.3]
[1735003880278,0.22192456,94445.0,94430.0,0.3608]
[1735003880477,0.22192456,94445.0,94438.0,0.053009]
[1735003880678,0.053008,94440.0,94438.0,0.053009]
[1735003880971,0.22192456,94445.0,94438.0,0.053009]
[1735003881175,0.053005,94446.0,94438.0,0.053009]
[1735003881476,0.004,94439.0,94438.0,0.053009]
[1735003882076,0.009,94439.0,94438.0,0.053009]
[1735003882278,0.014,94439.0,94438.0,0.053009]
[1735003885473,0.014,94439.0,94438.0,0.413809]
[1735003885983,0.052993,94468.0,94438.0,0.713809]
[1735003886175,0.052993,94468.0,94459.0,0.052997]